[Event "EYTCC Open U18 2022"]
[Site "Thessaloniki"]
[Date "2022.07.16"]
[Round "5.26"]
[White "Prokofiev, Valentyn"]
[Black "Borrmann, Laurenz"]
[Result "0-1"]
[ECO "D02"]
[WhiteElo "2286"]
[BlackElo "2274"]
[Annotator "ChessBase"]
[PlyCount "62"]
[EventDate "2022.07.12"]
[EventType "team-tourn"]
[EventCountry "GRE"]
[SourceTitle "playchess.com"]
[Source "ChessBase"]
[SourceQuality "1"]
[WhiteTeam "Ukraine"]
[BlackTeam "Austria"]
[WhiteTeamCountry "UKR"]
[BlackTeamCountry "AUT"]
[TimeControl "40/5400+30:1800+30"]

1. d4 {[%emt 0:00:02]} d5 {[%emt 0:00:22]} 2. Nf3 {[%emt 0:00:07]} Nf6 {[%emt 0:00:10]} 3. c4 {[%emt 0:00:07]} e6 {[%emt 0:00:09]} 4. e3 {[%emt 0:00:02]} b6 {[%emt 0:00:08]} 5. b3 {[%emt 0:00:03]} Bb7 {[%emt 0:00:15]} 6. Bd3 {[%emt 0:00:04]} Bb4+ {[%emt 0:01:34]} 7. Nbd2 {[%emt 0:00:30]} c5 {[%emt 0:06:59]} 8. cxd5 {[%emt 0:07:08]} Nxd5 {[%emt 0:02:39]} 9. O-O {[%emt 0:02:00]} cxd4 {[%emt 0:05:23]} 10. Nxd4 {[%emt 0:02:19]} O-O {[%emt 0:14:50]} 11. Qc2 {[%emt 0:05:55]} h6 {[%emt 0:03:02]} 12. Bb2 {[%emt 0:06:37]} Nd7 {[%emt 0:00:58]} 13. Bh7+ {[%emt 0:25:48]} Kh8 {[%emt 0:00:08]} 14. Nxe6 {[%emt 0:00:02]} fxe6 {[%emt 0:01:38]} 15. Bxg7+ {[%emt 0:01:50]} Kxg7 {[%emt 0:00:07]} 16. Qg6+ {[%emt 0:00:03]} Kh8 {[%emt 0:00:10]} 17. Qxh6 {[%emt 0:00:02]} Rf7 {[%emt 0:20:28]} 18. Bg6+ {[%emt 0:01:03]} Kg8 {[%emt 0:00:05]} 19. Bxf7+ {[%emt 0:00:16]} Kxf7 {[%emt 0:00:05]} 20. Ne4 {[%emt 0:00:05]} Qg8 {[%emt 0:01:50]} 21. f4 {[%emt 0:03:03]} Nxe3 {[%emt 0:05:03]} 22. Ng5+ {[%emt 0:00:03]} Ke7 {[%emt 0:01:13]} 23. Rae1 {[%emt 0:01:48]} Bc5 {[%emt 0:02:55]} 24. Rf2 {[%emt 0:00:04]} Ng4 {[%emt 0:01:15]} 25. Rxe6+ {[%emt 0:03:14]} Kd8 {[%emt 0:00:15]} 26. Qh5 {[%emt 0:00:12]} Bxf2+ {[%emt 0:02:29]} 27. Kh1 {[%emt 0:00:04]} Ne3 {[%emt 0:01:27]} 28. h4 {[%emt 0:00:43]} Nxg2 {[%emt 0:04:19]} 29. Kh2 {[%emt 0:05:12]} Nxf4 {[%emt 0:02:31]} 30. Qg4 {[%emt 0:00:59]} Nxe6 {[%emt 0:01:21]} 31. Nxe6+ {[%emt 0:00:03]} Ke7 {[%emt 0:00:18]} 0-1

[Event "EYTCC Open U18 2022"]
[Site "Thessaloniki"]
[Date "2022.07.16"]
[Round "5.27"]
[White "Marakovits, Nico"]
[Black "Hulka, Valentyn"]
[Result "1/2-1/2"]
[ECO "D31"]
[WhiteElo "2259"]
[BlackElo "2123"]
[Annotator "ChessBase"]
[PlyCount "147"]
[EventDate "2022.07.12"]
[EventType "team-tourn"]
[EventCountry "GRE"]
[SourceTitle "playchess.com"]
[Source "ChessBase"]
[SourceQuality "1"]
[WhiteTeam "Austria"]
[BlackTeam "Ukraine"]
[WhiteTeamCountry "AUT"]
[BlackTeamCountry "UKR"]
[TimeControl "40/5400+30:1800+30"]

1. d4 {[%emt 0:00:04]} d5 {[%emt 0:00:08]} 2. c4 {[%emt 0:00:10]} e6 {[%emt 0:00:03]} 3. Nc3 {[%emt 0:00:10]} a6 {[%emt 0:00:03]} 4. cxd5 {[%emt 0:00:07]} exd5 {[%emt 0:00:04]} 5. Qb3 {[%emt 0:00:08]} Nf6 {[%emt 0:04:37]} 6. Bg5 {[%emt 0:01:15]} c6 {[%emt 0:07:39]} 7. e4 {[%emt 0:01:23]} dxe4 {[%emt 0:04:58]} 8. Bc4 {[%emt 0:00:11]} Qe7 {[%emt 0:02:05]} 9. Bxf6 {[%emt 0:04:56]} Qxf6 {[%emt 0:05:28]} 10. Nxe4 {[%emt 0:01:09]} Qg6 {[%emt 0:00:29]} 11. Qe3 {[%emt 0:17:36]} Bb4+ {[%emt 0:03:03]} 12. Nc3+ {[%emt 0:01:55]} Be6 {[%emt 0:00:17]} 13. Nge2 {[%emt 0:05:14]} Bd6 {[%emt 0:16:01]} 14. Bxe6 {[%emt 0:05:53]} Qxe6 {[%emt 0:00:06]} 15. Qxe6+ {[%emt 0:00:03]} fxe6 {[%emt 0:00:02]} 16. O-O-O {[%emt 0:01:13]} Nd7 {[%emt 0:15:14]} 17. Ng3 {[%emt 0:02:26]} O-O {[%emt 0:03:28]} 18. f3 {[%emt 0:03:58]} Rad8 {[%emt 0:02:29]} 19. Rhe1 {[%emt 0:01:25]} Kf7 {[%emt 0:00:25]} 20. Nge4 {[%emt 0:00:58]} Be7 {[%emt 0:00:18]} 21. Nf2 {[%emt 0:00:47]} Bf6 {[%emt 0:03:19]} 22. Nfe4 {[%emt 0:10:44]} Be7 {[%emt 0:00:29]} 23. Nf2 {[%emt 0:05:03]} Bf6 {[%emt 0:01:06]} 24. Ng4 {[%emt 0:00:39]} Be7 {[%emt 0:10:01]} 25. Ne4 {[%emt 0:02:30]} h5 {[%emt 0:02:18]} 26. Ngf2 {[%emt 0:00:19]} g5 {[%emt 0:04:21]} 27. Nh3 {[%emt 0:01:42]} Kg6 {[%emt 0:00:20]} 28. Nd2 {[%emt 0:01:29]} Rf6 {[%emt 0:02:28]} 29. Ne4 {[%emt 0:04:52]} Rf5 {[%emt 0:00:21]} 30. Ng3 {[%emt 0:01:58]} Rf6 {[%emt 0:00:22]} 31. Nf2 {[%emt 0:00:52]} Bf8 {[%emt 0:02:36]} 32. Nd3 {[%emt 0:01:29]} Be7 {[%emt 0:02:36]} 33. Ne4 {[%emt 0:00:54]} Rf5 {[%emt 0:00:26]} 34. Nd2 {[%emt 0:02:36]} Kf7 {[%emt 0:02:40]} 35. Nc4 {[%emt 0:00:23]} Rd5 {[%emt 0:00:14]} 36. Nf2 {[%emt 0:07:30]} Nf6 {[%emt 0:02:22]} 37. Ne5+ {[%emt 0:00:23]} Kg7 {[%emt 0:00:01]} 38. Ned3 {[%emt 0:04:16]} Rxd4 {[%emt 0:01:26]} 39. Rxe6 {[%emt 0:00:08]} Nd5 {[%emt 0:00:54]} 40. Rde1 {[%emt 0:00:00]} Bf6 {[%emt 0:00:00]} 41. Re8 {[%emt 0:04:47]} Rd7 {[%emt 0:06:39]} 42. R8e4 {[%emt 0:06:59]} c5 {[%emt 0:04:44]} 43. Kb1 {[%emt 0:09:00]} Rc7 {[%emt 0:01:28]} 44. Nc1 {[%emt 0:04:45]} Rc6 {[%emt 0:01:41]} 45. Nb3 {[%emt 0:00:43]} Rxe4 {[%emt 0:06:19]} 46. fxe4 {[%emt 0:00:27]} Nf4 {[%emt 0:00:26]} 47. e5 {[%emt 0:00:21]} Be7 {[%emt 0:00:01]} 48. g3 {[%emt 0:00:22]} Ne6 {[%emt 0:00:01]} 49. Na5 {[%emt 0:00:33]} Rc7 {[%emt 0:00:10]} 50. Nc4 {[%emt 0:00:07]} Rd7 {[%emt 0:00:35]} 51. Ne4 {[%emt 0:02:13]} Rd5 {[%emt 0:00:53]} 52. Nc3 {[%emt 0:00:27]} Rd4 {[%emt 0:00:29]} 53. Ne3 {[%emt 0:00:31]} Kg6 {[%emt 0:00:32]} 54. Re2 {[%emt 0:04:26]} b5 {[%emt 0:01:00]} 55. Rf2 {[%emt 0:00:26]} Rd3 {[%emt 0:02:25]} 56. Nf5 {[%emt 0:00:59]} Bf8 {[%emt 0:00:30]} 57. Kc2 {[%emt 0:03:55]} c4 {[%emt 0:00:36]} 58. a3 {[%emt 0:01:21]} Rd7 {[%emt 0:02:15]} 59. Ne4 {[%emt 0:04:35]} Rd5 {[%emt 0:02:25]} 60. Nfd6 {[%emt 0:00:12]} Bg7 {[%emt 0:00:24]} 61. Nf7 {[%emt 0:03:10]} Bxe5 {[%emt 0:00:16]} 62. Nxe5+ {[%emt 0:01:26]} Rxe5 {[%emt 0:00:02]} 63. Nc3 {[%emt 0:00:20]} Nd4+ {[%emt 0:00:21]} 64. Kd2 {[%emt 0:01:01]} g4 {[%emt 0:00:02]} 65. Rf8 {[%emt 0:00:16]} Nf3+ {[%emt 0:00:09]} 66. Kd1 {[%emt 0:00:26]} Nxh2 {[%emt 0:00:40]} 67. Ne2 {[%emt 0:00:27]} Kg7 {[%emt 0:00:52]} 68. Ra8 {[%emt 0:00:09]} Re6 {[%emt 0:01:54]} 69. Nf4 {[%emt 0:00:14]} Rd6+ {[%emt 0:00:08]} 70. Ke2 {[%emt 0:00:09]} Nf3 {[%emt 0:00:10]} 71. Nxh5+ {[%emt 0:00:21]} Kh6 {[%emt 0:00:09]} 72. Nf4 {[%emt 0:00:49]} Nd4+ {[%emt 0:00:50]} 73. Ke3 {[%emt 0:01:11]} Nf5+ {[%emt 0:07:56]} 74. Ke4 1/2-1/2

[Event "EYTCC Open U18 2022"]
[Site "Thessaloniki"]
[Date "2022.07.16"]
[Round "5.28"]
[White "Podolskyi, Mykhailo"]
[Black "Pilshofer, Paul"]
[Result "1-0"]
[ECO "C23"]
[WhiteElo "2025"]
[BlackElo "2223"]
[Annotator "ChessBase"]
[PlyCount "77"]
[EventDate "2022.07.12"]
[EventType "team-tourn"]
[EventCountry "GRE"]
[SourceTitle "playchess.com"]
[Source "ChessBase"]
[SourceQuality "1"]
[WhiteTeam "Ukraine"]
[BlackTeam "Austria"]
[WhiteTeamCountry "UKR"]
[BlackTeamCountry "AUT"]
[TimeControl "40/5400+30:1800+30"]

1. e4 {[%emt 0:00:34]} e5 {[%emt 0:00:15]} 2. Nf3 {[%emt 0:00:24]} Nc6 {[%emt 0:00:09]} 3. Bc4 {[%emt 0:00:56]} Bc5 {[%emt 0:00:29]} 4. c3 {[%emt 0:00:38]} d6 {[%emt 0:00:16]} 5. d4 {[%emt 0:00:29]} exd4 {[%emt 0:00:08]} 6. cxd4 {[%emt 0:00:03]} Bb6 {[%emt 0:00:21]} 7. Bb5 {[%emt 0:01:28]} Bd7 {[%emt 0:01:50]} 8. O-O {[%emt 0:02:02]} Nge7 {[%emt 0:01:12]} 9. Nc3 {[%emt 0:07:27]} O-O {[%emt 0:05:23]} 10. h3 {[%emt 0:06:49]} a6 {[%emt 0:08:25]} 11. Ba4 {[%emt 0:02:20]} h6 {[%emt 0:04:52]} 12. Re1 {[%emt 0:05:38]} Ng6 {[%emt 0:03:42]} 13. Be3 {[%emt 0:13:19]} Na5 {[%emt 0:20:40]} 14. Bc2 {[%emt 0:05:20]} f5 {[%emt 0:10:29]} 15. e5 {[%emt 0:03:37]} dxe5 {[%emt 0:16:16]} 16. dxe5 {[%emt 0:00:18]} Re8 {[%emt 0:00:47]} 17. Bxb6 {[%emt 0:22:16]} cxb6 {[%emt 0:00:12]} 18. Qb1 {[%emt 0:11:01]} Bc6 {[%emt 0:10:55]} 19. Bxf5 {[%emt 0:01:47]} Bxf3 {[%emt 0:01:32]} 20. Bxg6 {[%emt 0:00:06]} Qg5 {[%emt 0:00:57]} 21. Bh7+ {[%emt 0:00:11]} Kh8 {[%emt 0:01:04]} 22. Qg6 {[%emt 0:00:09]} Bh5 {[%emt 0:09:04]} 23. Qxg5 {[%emt 0:01:00]} hxg5 {[%emt 0:00:00]} 24. Bf5 {[%emt 0:00:42]} Nc6 {[%emt 0:01:44]} 25. g4 {[%emt 0:03:57]} Bf7 {[%emt 0:00:01]} 26. e6 {[%emt 0:01:05]} Bg8 {[%emt 0:00:02]} 27. Rad1 {[%emt 0:01:29]} g6 {[%emt 0:00:29]} 28. Bxg6 {[%emt 0:00:14]} Rxe6 {[%emt 0:00:04]} 29. Rxe6 {[%emt 0:00:10]} Bxe6 {[%emt 0:00:01]} 30. Rd6 {[%emt 0:00:13]} Bc4 {[%emt 0:00:46]} 31. b3 {[%emt 0:01:03]} Bg8 {[%emt 0:00:20]} 32. Ne4 {[%emt 0:00:40]} a5 {[%emt 0:01:38]} 33. Nxg5 {[%emt 0:06:08]} a4 {[%emt 0:00:13]} 34. Bf7 {[%emt 0:00:54]} axb3 {[%emt 0:01:26]} 35. axb3 {[%emt 0:00:34]} Bxf7 {[%emt 0:01:26]} 36. Nxf7+ {[%emt 0:00:04]} Kg8 {[%emt 0:00:19]} 37. Rd7 {[%emt 0:02:27]} Ra3 {[%emt 0:00:51]} 38. g5 {[%emt 0:00:35]} Rxb3 {[%emt 0:00:31]} 39. Nh6+ {[%emt 0:00:12]} 1-0

[Event "EYTCC Open U18 2022"]
[Site "Thessaloniki"]
[Date "2022.07.16"]
[Round "5.29"]
[White "Ratnesan, Ranesh"]
[Black "Pekkul, Arda"]
[Result "1-0"]
[ECO "A65"]
[WhiteElo "2269"]
[BlackElo "1599"]
[Annotator "ChessBase"]
[PlyCount "83"]
[EventDate "2022.07.12"]
[EventType "team-tourn"]
[EventCountry "GRE"]
[SourceTitle "playchess.com"]
[Source "ChessBase"]
[SourceQuality "1"]
[WhiteTeam "England"]
[BlackTeam "Turkey"]
[WhiteTeamCountry "ENG"]
[BlackTeamCountry "TUR"]
[TimeControl "40/5400+30:1800+30"]

1. d4 {[%emt 0:00:04]} Nf6 {[%emt 0:00:09]} 2. c4 {[%emt 0:00:16]} c5 {[%emt 0:00:10]} 3. d5 {[%emt 0:00:14]} e6 {[%emt 0:00:08]} 4. Nc3 {[%emt 0:00:13]} exd5 {[%emt 0:00:10]} 5. cxd5 {[%emt 0:00:08]} d6 {[%emt 0:00:08]} 6. e4 {[%emt 0:01:12]} g6 {[%emt 0:00:08]} 7. h3 {[%emt 0:02:30]} Bg7 {[%emt 0:00:54]} 8. Nf3 {[%emt 0:00:07]} O-O {[%emt 0:01:23]} 9. Bd3 {[%emt 0:00:56]} a6 {[%emt 0:02:09]} 10. a4 {[%emt 0:00:16]} Re8 {[%emt 0:00:06]} 11. O-O {[%emt 0:00:24]} Nbd7 {[%emt 0:00:07]} 12. Bf4 {[%emt 0:04:44]} Nh5 {[%emt 0:00:06]} 13. Bh2 {[%emt 0:08:36]} Ne5 {[%emt 0:00:11]} 14. Nxe5 {[%emt 0:03:28]} Bxe5 {[%emt 0:02:15]} 15. f4 {[%emt 0:04:58]} Bd4+ {[%emt 0:34:14]} 16. Kh1 {[%emt 0:00:08]} Rb8 {[%emt 0:00:11]} 17. Qf3 {[%emt 0:10:20]} f5 {[%emt 0:04:45]} 18. Rae1 {[%emt 0:08:15]} Ng7 {[%emt 0:05:44]} 19. e5 {[%emt 0:02:49]} Bd7 {[%emt 0:02:17]} 20. e6 {[%emt 0:08:58]} Bxc3 {[%emt 0:04:00]} 21. bxc3 {[%emt 0:00:10]} Bxa4 {[%emt 0:00:07]} 22. Ra1 {[%emt 0:04:31]} b5 {[%emt 0:03:55]} 23. Ra3 {[%emt 0:06:27]} Qc7 {[%emt 0:05:48]} 24. c4 {[%emt 0:01:50]} bxc4 {[%emt 0:04:27]} 25. Rxa4 {[%emt 0:00:30]} cxd3 {[%emt 0:00:07]} 26. Qxd3 {[%emt 0:00:12]} a5 {[%emt 0:04:56]} 27. Rfa1 {[%emt 0:02:26]} Ra8 {[%emt 0:01:22]} 28. Bg3 {[%emt 0:01:59]} Nh5 {[%emt 0:06:31]} 29. Bh4 {[%emt 0:04:55]} Qg7 {[%emt 0:00:53]} 30. Rb1 {[%emt 0:03:35]} Rab8 {[%emt 0:02:12]} 31. Rb5 {[%emt 0:06:08]} Nxf4 {[%emt 0:06:13]} 32. Rxf4 {[%emt 0:01:20]} g5 {[%emt 0:00:04]} 33. Bxg5 {[%emt 0:04:12]} Qxg5 {[%emt 0:00:09]} 34. Rxf5 {[%emt 0:00:21]} Qg6 {[%emt 0:00:33]} 35. Rxa5 {[%emt 0:02:19]} c4 {[%emt 0:01:32]} 36. Qc2 {[%emt 0:03:09]} c3 {[%emt 0:00:39]} 37. Rf2 {[%emt 0:00:48]} Rb2 {[%emt 0:03:17]} 38. Qxg6+ {[%emt 0:00:32]} hxg6 {[%emt 0:00:23]} 39. Rxb2 {[%emt 0:00:06]} cxb2 {[%emt 0:00:51]} 40. Rb5 {[%emt 0:00:00]} Kg7 {[%emt 0:00:00]} 41. Rxb2 {[%emt 0:00:33]} Kf6 {[%emt 0:01:20]} 42. Re2 {[%emt 0:00:20]} 1-0

[Event "EYTCC Open U18 2022"]
[Site "Thessaloniki"]
[Date "2022.07.16"]
[Round "5.30"]
[White "Atis, Hasan"]
[Black "Stoica, Savas Marin"]
[Result "1-0"]
[ECO "B67"]
[WhiteElo "1956"]
[BlackElo "2092"]
[Annotator "ChessBase"]
[PlyCount "129"]
[EventDate "2022.07.12"]
[EventType "team-tourn"]
[EventCountry "GRE"]
[SourceTitle "playchess.com"]
[Source "ChessBase"]
[SourceQuality "1"]
[WhiteTeam "Turkey"]
[BlackTeam "England"]
[WhiteTeamCountry "TUR"]
[BlackTeamCountry "ENG"]
[TimeControl "40/5400+30:1800+30"]

1. e4 {[%emt 0:00:08]} c5 {[%emt 0:00:23]} 2. Nf3 {[%emt 0:00:07]} Nc6 {[%emt 0:00:06]} 3. d4 {[%emt 0:00:04]} cxd4 {[%emt 0:00:07]} 4. Nxd4 {[%emt 0:00:19]} Nf6 {[%emt 0:00:06]} 5. Nc3 {[%emt 0:00:06]} d6 {[%emt 0:00:04]} 6. Bg5 {[%emt 0:00:07]} e6 {[%emt 0:00:06]} 7. Qd2 {[%emt 0:00:04]} a6 {[%emt 0:00:06]} 8. O-O-O {[%emt 0:00:05]} Bd7 {[%emt 0:00:03]} 9. f4 {[%emt 0:00:09]} b5 {[%emt 0:00:07]} 10. Bxf6 {[%emt 0:01:05]} gxf6 {[%emt 0:00:05]} 11. Kb1 {[%emt 0:03:05]} Qb6 {[%emt 0:00:46]} 12. Nce2 {[%emt 0:00:07]} Rc8 {[%emt 0:00:14]} 13. f5 {[%emt 0:01:07]} Nxd4 {[%emt 0:00:10]} 14. Nxd4 {[%emt 0:00:19]} e5 {[%emt 0:00:07]} 15. Ne2 {[%emt 0:07:46]} b4 {[%emt 0:02:31]} 16. Ng3 {[%emt 0:03:05]} h5 {[%emt 0:12:11]} 17. h4 {[%emt 0:08:25]} Ke7 {[%emt 0:01:45]} 18. Bd3 {[%emt 0:12:03]} a5 {[%emt 0:22:42]} 19. Qe2 {[%emt 0:01:52]} a4 {[%emt 0:06:53]} 20. Bc4 {[%emt 0:21:46]} Bh6 {[%emt 0:10:27]} 21. Nxh5 {[%emt 0:16:39]} Be3 {[%emt 0:09:02]} 22. g4 {[%emt 0:07:29]} Bd4 {[%emt 0:08:44]} 23. Bd5 {[%emt 0:11:21]} Bb5 {[%emt 0:01:47]} 24. Qf3 {[%emt 0:00:24]} Rc3 {[%emt 0:17:30]} 25. Qg2 {[%emt 0:03:16]} Rc7 {[%emt 0:01:14]} 26. Rh2 {[%emt 0:01:20]} Qc5 {[%emt 0:01:07]} 27. Qf3 {[%emt 0:00:41]} Be3 {[%emt 0:03:17]} 28. Re1 {[%emt 0:00:34]} Bd4 {[%emt 0:00:49]} 29. Rd1 {[%emt 0:00:04]} b3 {[%emt 0:00:42]} 30. axb3 {[%emt 0:01:09]} a3 {[%emt 0:00:21]} 31. b4 {[%emt 0:00:33]} Qxb4 {[%emt 0:00:14]} 32. Qb3 {[%emt 0:00:01]} Qxb3 {[%emt 0:00:18]} 33. Bxb3 {[%emt 0:00:23]} axb2 {[%emt 0:00:07]} 34. Rxd4 {[%emt 0:00:37]} exd4 {[%emt 0:00:05]} 35. Kxb2 {[%emt 0:00:38]} Bc6 {[%emt 0:00:18]} 36. Nf4 {[%emt 0:00:35]} Kf8 {[%emt 0:00:48]} 37. Bd5 {[%emt 0:00:43]} Bb5 {[%emt 0:00:19]} 38. Rh3 {[%emt 0:00:37]} Rg8 {[%emt 0:02:41]} 39. Rg3 {[%emt 0:00:25]} Rc3 {[%emt 0:00:09]} 40. Rg1 {[%emt 0:00:00]} Rf3 {[%emt 0:00:00]} 41. Nh5 {[%emt 0:00:52]} Rf2 {[%emt 0:05:24]} 42. Nxf6 {[%emt 0:22:12]} Rh8 {[%emt 0:00:05]} 43. g5 {[%emt 0:00:18]} Rxh4 {[%emt 0:13:36]} 44. Ra1 {[%emt 0:03:40]} d3 {[%emt 0:03:21]} 45. Ra7 {[%emt 0:02:56]} Be8 {[%emt 0:04:33]} 46. Ra8 {[%emt 0:02:01]} Rh8 {[%emt 0:00:05]} 47. Rxe8+ {[%emt 0:01:09]} Kg7 {[%emt 0:00:04]} 48. Rxh8 {[%emt 0:01:26]} Kxh8 {[%emt 0:00:04]} 49. Kc1 {[%emt 0:00:07]} Rxc2+ {[%emt 0:00:13]} 50. Kd1 {[%emt 0:00:01]} Rg2 {[%emt 0:03:22]} 51. Bxf7 {[%emt 0:01:13]} Rxg5 {[%emt 0:00:03]} 52. Ne8 {[%emt 0:00:41]} Rg2 {[%emt 0:00:43]} 53. Be6 {[%emt 0:00:31]} Re2 {[%emt 0:00:43]} 54. Bd5 {[%emt 0:00:14]} Kh7 {[%emt 0:00:12]} 55. f6 {[%emt 0:00:44]} Kg6 {[%emt 0:00:12]} 56. f7 {[%emt 0:00:26]} Rf2 {[%emt 0:00:02]} 57. Ke1 {[%emt 0:00:36]} d2+ {[%emt 0:02:27]} 58. Kxf2 {[%emt 0:00:27]} d1=Q {[%emt 0:00:04]} 59. f8=Q {[%emt 0:00:12]} Qd2+ {[%emt 0:00:08]} 60. Kf3 {[%emt 0:00:17]} Qd1+ {[%emt 0:00:16]} 61. Kg2 {[%emt 0:00:36]} Qg4+ {[%emt 0:00:13]} 62. Kf2 {[%emt 0:00:21]} Qh4+ {[%emt 0:00:17]} 63. Ke2 {[%emt 0:00:18]} Qh5+ {[%emt 0:00:27]} 64. Qf3 {[%emt 0:00:09]} Qh2+ {[%emt 0:00:03]} 65. Kd3 {[%emt 0:00:35]} 1-0

[Event "EYTCC Open U18 2022"]
[Site "Thessaloniki"]
[Date "2022.07.16"]
[Round "5.31"]
[White "Cont, Arya"]
[Black "Aydogdu, Selcan Ayberk"]
[Result "0-1"]
[ECO "C00"]
[WhiteElo "1968"]
[BlackElo "1902"]
[Annotator "ChessBase"]
[PlyCount "64"]
[EventDate "2022.07.12"]
[EventType "team-tourn"]
[EventCountry "GRE"]
[SourceTitle "playchess.com"]
[Source "ChessBase"]
[SourceQuality "1"]
[WhiteTeam "England"]
[BlackTeam "Turkey"]
[WhiteTeamCountry "ENG"]
[BlackTeamCountry "TUR"]
[TimeControl "40/5400+30:1800+30"]

1. e4 {[%emt 0:00:03]} e6 {[%emt 0:00:06]} 2. b3 {[%emt 0:00:03]} d5 {[%emt 0:00:07]} 3. Bb2 {[%emt 0:00:03]} dxe4 {[%emt 0:00:05]} 4. Nc3 {[%emt 0:00:02]} Nf6 {[%emt 0:00:16]} 5. Qe2 {[%emt 0:00:04]} Bb4 {[%emt 0:00:07]} 6. O-O-O {[%emt 0:00:05]} Bxc3 {[%emt 0:00:40]} 7. dxc3 {[%emt 0:00:07]} Qe7 {[%emt 0:00:21]} 8. g4 {[%emt 0:00:04]} h6 {[%emt 0:00:42]} 9. Bg2 {[%emt 0:00:06]} Bd7 {[%emt 0:02:32]} 10. h4 {[%emt 0:00:04]} Nc6 {[%emt 0:05:58]} 11. g5 {[%emt 0:00:08]} Nd5 {[%emt 0:01:19]} 12. Nh3 {[%emt 0:00:05]} hxg5 {[%emt 0:06:23]} 13. hxg5 {[%emt 0:00:06]} f5 {[%emt 0:07:07]} 14. f3 {[%emt 0:06:10]} exf3 {[%emt 0:03:34]} 15. Qxf3 {[%emt 0:00:02]} O-O-O {[%emt 0:06:24]} 16. c4 {[%emt 0:00:02]} Nb6 {[%emt 0:00:55]} 17. Rhe1 {[%emt 0:01:55]} Kb8 {[%emt 0:13:27]} 18. Qc3 {[%emt 0:09:37]} e5 {[%emt 0:09:18]} 19. c5 {[%emt 0:01:43]} Nc8 {[%emt 0:00:28]} 20. b4 {[%emt 0:31:27]} Nd4 {[%emt 0:08:16]} 21. Qe3 {[%emt 0:05:17]} Bc6 {[%emt 0:13:15]} 22. Bxc6 {[%emt 0:00:15]} Nxc6 {[%emt 0:00:05]} 23. b5 {[%emt 0:09:57]} Rxd1+ {[%emt 0:02:41]} 24. Rxd1 {[%emt 0:00:38]} f4 {[%emt 0:02:37]} 25. Qf3 {[%emt 0:07:22]} Na5 {[%emt 0:03:12]} 26. c6 {[%emt 0:09:37]} bxc6 {[%emt 0:03:27]} 27. bxc6 {[%emt 0:00:38]} Qe6 {[%emt 0:01:27]} 28. Nf2 {[%emt 0:03:50]} Qxc6 {[%emt 0:01:27]} 29. Qe2 {[%emt 0:07:46]} Nc4 {[%emt 0:02:38]} 30. Bxe5 {[%emt 0:04:03]} Re8 {[%emt 0:00:42]} 31. Nd3 {[%emt 0:00:14]} Qb5 {[%emt 0:00:50]} 32. Re1 {[%emt 0:00:29]} Rxe5 {[%emt 0:00:25]} 0-1

[Event "EYTCC Open U18 2022"]
[Site "Thessaloniki"]
[Date "2022.07.16"]
[Round "5.32"]
[White "Kayrak, Murat"]
[Black "Dias, Savin"]
[Result "0-1"]
[ECO "E61"]
[WhiteElo "1561"]
[BlackElo "1894"]
[Annotator "NA"]
[PlyCount "148"]
[EventDate "2022.07.12"]
[EventType "team-tourn"]
[EventCountry "GRE"]
[SourceTitle "playchess.com"]
[Source "ChessBase"]
[SourceQuality "1"]
[WhiteTeam "Turkey"]
[BlackTeam "England"]
[WhiteTeamCountry "TUR"]
[BlackTeamCountry "ENG"]
[TimeControl "40/5400+30:1800+30"]

1. d4 {[%emt 0:00:05]} Nf6 {[%emt 0:00:03]} 2. c4 {[%emt 0:00:06]} g6 {[%emt 0:00:04]} 3. Nc3 {[%emt 0:00:06]} Bg7 {[%emt 0:00:02]} 4. Bg5 {[%emt 0:00:32]} O-O {[%emt 0:00:17]} 5. Nf3 {[%emt 0:00:20]} d6 {[%emt 0:00:26]} 6. e3 {[%emt 0:00:11]} c6 {[%emt 0:01:26]} 7. Be2 {[%emt 0:00:58]} Qc7 {[%emt 0:01:13]} 8. Qc2 {[%emt 0:00:34]} e5 {[%emt 0:03:34]} 9. dxe5 {[%emt 0:05:42]} dxe5 {[%emt 0:00:33]} 10. Bxf6 {[%emt 0:01:42]} Bxf6 {[%emt 0:00:12]} 11. Ne4 {[%emt 0:00:17]} Bg7 {[%emt 0:01:52]} 12. c5 {[%emt 0:00:15]} h6 {[%emt 0:05:14]} 13. Rd1 {[%emt 0:10:01]} Be6 {[%emt 0:02:59]} 14. Nd6 {[%emt 0:01:30]} Nd7 {[%emt 0:10:50]} 15. O-O {[%emt 0:07:44]} Rab8 {[%emt 0:28:35]} 16. b4 {[%emt 0:03:45]} b6 {[%emt 0:07:15]} 17. Bc4 {[%emt 0:09:19]} Bxc4 {[%emt 0:02:13]} 18. Qxc4 {[%emt 0:00:32]} b5 {[%emt 0:01:39]} 19. Qb3 {[%emt 0:02:18]} a5 {[%emt 0:02:16]} 20. a3 {[%emt 0:00:35]} a4 {[%emt 0:00:58]} 21. Qa2 {[%emt 0:01:17]} Qd8 {[%emt 0:02:13]} 22. Rd2 {[%emt 0:04:58]} Qe7 {[%emt 0:02:31]} 23. Rfd1 {[%emt 0:00:54]} Nf6 {[%emt 0:01:28]} 24. Qb2 {[%emt 0:13:02]} Nd5 {[%emt 0:03:15]} 25. e4 {[%emt 0:07:16]} Nf4 {[%emt 0:04:16]} 26. g3 {[%emt 0:05:34]} Qe6 {[%emt 0:01:26]} 27. Qc3 {[%emt 0:07:00]} Nh5 {[%emt 0:00:15]} 28. Nh4 {[%emt 0:00:31]} Kh7 {[%emt 0:01:47]} 29. Qf3 {[%emt 0:01:29]} Nf6 {[%emt 0:03:55]} 30. Kg2 {[%emt 0:04:21]} Ng8 {[%emt 0:02:44]} 31. Qd3 {[%emt 0:02:32]} Rfd8 {[%emt 0:00:50]} 32. Qe2 {[%emt 0:01:21]} Bf6 {[%emt 0:01:26]} 33. Nf3 {[%emt 0:00:30]} Rd7 {[%emt 0:01:24]} 34. h3 {[%emt 0:00:53]} Bg7 {[%emt 0:01:26]} 35. Nh4 {[%emt 0:00:40]} Rbd8 {[%emt 0:01:23]} 36. f4 {[%emt 0:02:05]} Bf8 {[%emt 0:01:02]} 37. f5 {[%emt 0:00:49]} Qf6 {[%emt 0:01:06]} 38. fxg6+ {[%emt 0:00:44]} fxg6 {[%emt 0:00:07]} 39. Rf1 {[%emt 0:00:21]} Qe6 {[%emt 0:02:03]} 40. Qf3 {[%emt 0:00:00]} Kg7 {[%emt 0:00:00]} 41. Rdf2 {[%emt 0:14:07]} Bxd6 {[%emt 0:03:12]} 42. cxd6 {[%emt 0:00:11]} h5 {[%emt 0:09:20]} 43. g4 {[%emt 0:02:38]} hxg4 {[%emt 0:01:36]} 44. hxg4 {[%emt 0:00:17]} Qxd6 {[%emt 0:04:02]} 45. Qh3 {[%emt 0:01:04]} Qe6 {[%emt 0:01:55]} 46. Nf3 {[%emt 0:01:16]} Nf6 {[%emt 0:04:52]} 47. g5 {[%emt 0:08:56]} Qxh3+ {[%emt 0:03:08]} 48. Kxh3 {[%emt 0:00:03]} Nxe4 {[%emt 0:01:46]} 49. Re2 {[%emt 0:00:21]} Nd2 {[%emt 0:00:46]} 50. Nxd2 {[%emt 0:00:29]} Rxd2 {[%emt 0:00:06]} 51. Rxe5 {[%emt 0:00:11]} R2d3+ {[%emt 0:01:30]} 52. Kg2 {[%emt 0:00:27]} R8d7 {[%emt 0:01:39]} 53. Re6 {[%emt 0:00:24]} R3d5 {[%emt 0:00:35]} 54. Rf3 {[%emt 0:03:38]} Rxg5+ {[%emt 0:00:11]} 55. Kf2 {[%emt 0:00:34]} Rc7 {[%emt 0:01:47]} 56. Rc3 {[%emt 0:00:28]} c5 {[%emt 0:00:26]} 57. bxc5 {[%emt 0:00:41]} Rcxc5 {[%emt 0:00:17]} 58. Re7+ {[%emt 0:00:14]} Kf6 {[%emt 0:00:18]} 59. Rxc5 {[%emt 0:00:14]} Rxc5 {[%emt 0:00:05]} 60. Rb7 {[%emt 0:00:10]} Rc2+ {[%emt 0:00:03]} 61. Kg3 {[%emt 0:00:24]} Rc3+ {[%emt 0:00:09]} 62. Kg4 {[%emt 0:00:07]} Rxa3 {[%emt 0:00:51]} 63. Rb6+ {[%emt 0:00:13]} Kg7 {[%emt 0:00:10]} 64. Rxb5 {[%emt 0:00:05]} Kh6 {[%emt 0:00:32]} 65. Ra5 {[%emt 0:00:12]} Ra1 {[%emt 0:00:21]} 66. Kf3 {[%emt 0:00:14]} a3 {[%emt 0:00:14]} 67. Kg2 {[%emt 0:00:13]} g5 {[%emt 0:00:43]} 68. Ra8 {[%emt 0:00:30]} Kh5 {[%emt 0:00:14]} 69. Ra7 {[%emt 0:00:11]} Kh4 {[%emt 0:00:58]} 70. Kf3 {[%emt 0:02:05]} g4+ {[%emt 0:01:11]} 71. Kg2 {[%emt 0:00:26]} Ra2+ {[%emt 0:00:06]} 72. Kf1 {[%emt 0:00:46]} Kg3 {[%emt 0:00:09]} 73. Rh7 {[%emt 0:00:18]} Ra1+ {[%emt 0:00:08]} 74. Ke2 {[%emt 0:00:19]} a2 {[%emt 0:00:07]} 0-1